[Event "Late-Titled-Tuesday-Blitz-October-17-2023"]
[Site "Chess.com"]
[Date "2023.10.17"]
[Round "2"]
[White "vugarrasulov"]
[Black "Nf3c5"]
[Result "1-0"]
[WhiteElo "2963"]
[BlackElo "2605"]
[TimeControl "180+1"]
[EndTime "14:17:55 PDT"]
[Termination "vugarrasulov won on time"]

1. e4 {[%clk 0:03:00.9]} 1... e5 {[%clk 0:02:56.9]} 2. Nf3 {[%clk 0:03:00.9]}
2... Nc6 {[%clk 0:02:57.1]} 3. Nc3 {[%clk 0:03:01.5]} 3... Nf6 {[%clk
0:02:50.5]} 4. h3 {[%clk 0:03:01.9]} 4... Bb4 {[%clk 0:02:48.9]} 5. Bd3 {[%clk
0:03:01.2]} 5... h6 {[%clk 0:02:35.4]} 6. a3 {[%clk 0:02:58.8]} 6... Bc5 {[%clk
0:02:30.6]} 7. b4 {[%clk 0:02:56.7]} 7... Bb6 {[%clk 0:02:11.8]} 8. Na4 {[%clk
0:02:54.5]} 8... d5 {[%clk 0:02:01.1]} 9. exd5 {[%clk 0:02:55.4]} 9... Qxd5
{[%clk 0:01:58.3]} 10. Qe2 {[%clk 0:02:55.8]} 10... O-O {[%clk 0:01:32.1]} 11.
c4 {[%clk 0:02:18.5]} 11... Qd8 {[%clk 0:01:29]} 12. O-O {[%clk 0:01:52.8]}
12... Nd4 {[%clk 0:01:02.3]} 13. Nxd4 {[%clk 0:01:51]} 13... Bxd4 {[%clk
0:01:02.1]} 14. Rb1 {[%clk 0:01:42]} 14... Re8 {[%clk 0:01:00.4]} 15. Bc2 {[%clk
0:01:37.5]} 15... b6 {[%clk 0:00:48.1]} 16. Nc3 {[%clk 0:01:28.3]} 16... Bb7
{[%clk 0:00:39.4]} 17. Ne4 {[%clk 0:01:28.3]} 17... a5 {[%clk 0:00:36.3]} 18. b5
{[%clk 0:01:18.5]} 18... Qe7 {[%clk 0:00:33.8]} 19. Ng3 {[%clk 0:01:15.5]} 19...
e4 {[%clk 0:00:31]} 20. Nf5 {[%clk 0:01:12.9]} 20... Qe5 {[%clk 0:00:31.2]} 21.
Nxd4 {[%clk 0:01:13.4]} 21... Qxd4 {[%clk 0:00:32.1]} 22. Bb2 {[%clk 0:01:13.5]}
22... Qd6 {[%clk 0:00:32.6]} 23. Rfe1 {[%clk 0:01:05]} 23... Rad8 {[%clk
0:00:32]} 24. Rbd1 {[%clk 0:01:04.2]} 24... Re6 {[%clk 0:00:29.1]} 25. a4 {[%clk
0:00:59.4]} 25... Rde8 {[%clk 0:00:27.9]} 26. Qe3 {[%clk 0:00:58.4]} 26... Nd7
{[%clk 0:00:25.5]} 27. Ba3 {[%clk 0:00:46.1]} 27... Nc5 {[%clk 0:00:20.1]} 28.
Qc3 {[%clk 0:00:27.5]} 28... Ra8 {[%clk 0:00:17.5]} 29. Re3 {[%clk 0:00:27.3]}
29... Rae8 {[%clk 0:00:17.2]} 30. Rde1 {[%clk 0:00:26.6]} 30... Rg6 {[%clk
0:00:14.1]} 31. d4 {[%clk 0:00:21.4]} 31... Nxa4 {[%clk 0:00:03.6]} 32. Bxa4
{[%clk 0:00:14.6]} 32... Qd7 {[%clk 0:00:04.1]} 33. d5 {[%clk 0:00:13.4]} 33...
f5 {[%clk 0:00:03.9]} 34. Rg3 {[%clk 0:00:12]} 34... Qf7 {[%clk 0:00:03.6]} 35.
Rxg6 {[%clk 0:00:09.6]} 35... Qxg6 {[%clk 0:00:04.5]} 36. Qg3 {[%clk 0:00:09.9]}
36... Qf7 {[%clk 0:00:04.3]} 37. Bc1 {[%clk 0:00:08.6]} 37... g5 {[%clk
0:00:03.5]} 38. h4 {[%clk 0:00:08.7]} 38... f4 {[%clk 0:00:03.9]} 39. Qc3 {[%clk
0:00:07.8]} 39... e3 {[%clk 0:00:03.5]} 40. Bb2 {[%clk 0:00:07.6]} 40... Kh7
{[%clk 0:00:02.9]} 41. Bc2+ {[%clk 0:00:07.5]} 1-0

[Event "Late-Titled-Tuesday-Blitz-October-17-2023"]
[Site "Chess.com"]
[Date "2023.10.17"]
[Round "2"]
[White "Chessbard1972"]
[Black "Barmen_EV"]
[Result "0-1"]
[WhiteElo "2331"]
[BlackElo "2512"]
[TimeControl "180+1"]
[EndTime "14:17:56 PDT"]
[Termination "Barmen_EV won by checkmate"]

1. e4 {[%clk 0:03:00.9]} 1... c5 {[%clk 0:02:59.7]} 2. Nc3 {[%clk 0:03:00.3]}
2... Nc6 {[%clk 0:02:59.2]} 3. f4 {[%clk 0:03:00.7]} 3... g6 {[%clk 0:02:56.7]}
4. Nf3 {[%clk 0:03:00.1]} 4... e6 {[%clk 0:02:56.7]} 5. Bc4 {[%clk 0:02:59.7]}
5... Bg7 {[%clk 0:02:56.9]} 6. d3 {[%clk 0:02:59.5]} 6... Nge7 {[%clk
0:02:57.3]} 7. a3 {[%clk 0:02:59.7]} 7... O-O {[%clk 0:02:56.9]} 8. O-O {[%clk
0:02:59.4]} 8... d5 {[%clk 0:02:56.3]} 9. Ba2 {[%clk 0:02:58.9]} 9... Rb8 {[%clk
0:02:55.5]} 10. Kh1 {[%clk 0:02:56.5]} 10... b5 {[%clk 0:02:55.4]} 11. Qe1
{[%clk 0:02:54.2]} 11... b4 {[%clk 0:02:47.7]} 12. Nb1 {[%clk 0:02:44.7]} 12...
bxa3 {[%clk 0:02:42.8]} 13. Nxa3 {[%clk 0:02:43.5]} 13... Bxb2 {[%clk
0:02:41.7]} 14. Bxb2 {[%clk 0:02:43]} 14... Rxb2 {[%clk 0:02:42.6]} 15. f5
{[%clk 0:02:37.5]} 15... exf5 {[%clk 0:02:27.3]} 16. Qc3 {[%clk 0:02:31.6]}
16... Rb6 {[%clk 0:02:09.9]} 17. Qxc5 {[%clk 0:02:30.5]} 17... Be6 {[%clk
0:02:06.6]} 18. Ng5 {[%clk 0:02:27.1]} 18... h6 {[%clk 0:02:01.8]} 19. Nxe6
{[%clk 0:02:26.4]} 19... fxe6 {[%clk 0:02:02.7]} 20. exd5 {[%clk 0:02:23.8]}
20... exd5 {[%clk 0:02:00.7]} 21. Nb5 {[%clk 0:02:19]} 21... a6 {[%clk
0:01:48.4]} 22. Nd6 {[%clk 0:02:14.6]} 22... Rf6 {[%clk 0:01:48.5]} 23. Bxd5+
{[%clk 0:02:11.1]} 23... Nxd5 {[%clk 0:01:49.4]} 24. Qxd5+ {[%clk 0:02:11.3]}
24... Kh7 {[%clk 0:01:48.4]} 25. Ne8 {[%clk 0:01:49.7]} 25... Qxe8 {[%clk
0:01:44.5]} 26. Rae1 {[%clk 0:01:48.8]} 26... Qf7 {[%clk 0:01:41.3]} 27. Qc5
{[%clk 0:01:46.9]} 27... Rb5 {[%clk 0:01:40.1]} 28. Qc3 {[%clk 0:01:43.4]} 28...
a5 {[%clk 0:01:37.9]} 29. h4 {[%clk 0:01:37.5]} 29... f4 {[%clk 0:01:37.4]} 30.
Re4 {[%clk 0:01:31.3]} 30... Rh5 {[%clk 0:01:35.4]} 31. Rfe1 {[%clk 0:01:28.7]}
31... Rxh4+ {[%clk 0:01:34.3]} 32. Kg1 {[%clk 0:01:29]} 32... f3 {[%clk
0:01:32.4]} 33. Rxh4 {[%clk 0:01:18.3]} 33... f2+ {[%clk 0:01:31.1]} 34. Kh2
{[%clk 0:01:17.8]} 34... fxe1=Q {[%clk 0:01:13.4]} 35. Qxe1 {[%clk 0:01:17]}
35... g5 {[%clk 0:01:10.9]} 36. Re4 {[%clk 0:01:14.4]} 36... Qc7+ {[%clk
0:01:08.6]} 37. Kg1 {[%clk 0:01:12.3]} 37... Qb6+ {[%clk 0:01:07.3]} 38. d4
{[%clk 0:01:09.3]} 38... Nxd4 {[%clk 0:01:03.6]} 39. Re7+ {[%clk 0:01:09]} 39...
Kg6 {[%clk 0:01:03.5]} 40. Qe4+ {[%clk 0:01:04.7]} 40... Nf5+ {[%clk 0:01:02.9]}
41. Kh2 {[%clk 0:01:05.3]} 41... Qd6+ {[%clk 0:01:01.2]} 42. Re5 {[%clk
0:01:04.4]} 42... Qd4 {[%clk 0:00:37.5]} 43. Qe2 {[%clk 0:00:52.1]} 43... Ng3
{[%clk 0:00:32.5]} 44. Qd3+ {[%clk 0:00:41.8]} 44... Qxd3 {[%clk 0:00:31.8]} 45.
cxd3 {[%clk 0:00:42.4]} 45... Nf1+ {[%clk 0:00:29.8]} 46. Kg1 {[%clk 0:00:42.4]}
46... Rf5 {[%clk 0:00:23.5]} 47. Re6+ {[%clk 0:00:37.3]} 47... Kh5 {[%clk
0:00:20.6]} 48. Re4 {[%clk 0:00:37.1]} 48... Rf4 {[%clk 0:00:17.2]} 49. Re6
{[%clk 0:00:32.7]} 49... Ng3 {[%clk 0:00:16.1]} 50. Ra6 {[%clk 0:00:31.5]} 50...
Rf1+ {[%clk 0:00:13.9]} 51. Kh2 {[%clk 0:00:31.4]} 51... Kg4 {[%clk 0:00:14.5]}
52. Rxa5 {[%clk 0:00:23.1]} 52... Rh1# {[%clk 0:00:15.4]} 0-1

[Event "Late-Titled-Tuesday-Blitz-October-17-2023"]
[Site "Chess.com"]
[Date "2023.10.17"]
[Round "2"]
[White "Hrant_ChessMood"]
[Black "biostatistician"]
[Result "1-0"]
[WhiteElo "2925"]
[BlackElo "2586"]
[TimeControl "180+1"]
[EndTime "14:17:59 PDT"]
[Termination "Hrant_ChessMood won on time"]

1. e4 {[%clk 0:03:00.9]} 1... e5 {[%clk 0:02:37.7]} 2. Nf3 {[%clk 0:02:57.6]}
2... Nc6 {[%clk 0:02:34.6]} 3. Bc4 {[%clk 0:02:56.2]} 3... Nf6 {[%clk
0:02:34.3]} 4. d3 {[%clk 0:02:53.6]} 4... Bc5 {[%clk 0:02:34.4]} 5. c3 {[%clk
0:02:53.2]} 5... d6 {[%clk 0:02:33.9]} 6. O-O {[%clk 0:02:53]} 6... a6 {[%clk
0:02:33.9]} 7. a4 {[%clk 0:02:52.4]} 7... Ba7 {[%clk 0:02:34.1]} 8. Na3 {[%clk
0:02:52]} 8... Bg4 {[%clk 0:02:29]} 9. h3 {[%clk 0:02:49.9]} 9... Bh5 {[%clk
0:02:28.9]} 10. Nc2 {[%clk 0:02:49.1]} 10... O-O {[%clk 0:02:24.3]} 11. Be3
{[%clk 0:02:49.1]} 11... d5 {[%clk 0:02:13.3]} 12. exd5 {[%clk 0:02:43.9]} 12...
Nxd5 {[%clk 0:02:14.2]} 13. Bxa7 {[%clk 0:02:44.2]} 13... Rxa7 {[%clk
0:02:13.3]} 14. Re1 {[%clk 0:02:44.7]} 14... Re8 {[%clk 0:02:07.8]} 15. Ne3
{[%clk 0:02:38.1]} 15... Nxe3 {[%clk 0:02:03.4]} 16. Rxe3 {[%clk 0:02:39]} 16...
Ra8 {[%clk 0:02:00.8]} 17. Qe1 {[%clk 0:02:26.4]} 17... Qd6 {[%clk 0:01:46.1]}
18. b4 {[%clk 0:02:18.3]} 18... Re7 {[%clk 0:01:44]} 19. Ng5 {[%clk 0:02:14.8]}
19... Rae8 {[%clk 0:01:38.1]} 20. Ne4 {[%clk 0:02:11.7]} 20... Qh6 {[%clk
0:01:27.9]} 21. Nc5 {[%clk 0:02:06.7]} 21... Nd8 {[%clk 0:01:26.6]} 22. a5
{[%clk 0:02:01.4]} 22... Qd6 {[%clk 0:01:07.8]} 23. Ne4 {[%clk 0:01:56.2]} 23...
Qd7 {[%clk 0:01:05.5]} 24. Rg3 {[%clk 0:01:55.6]} 24... Bg6 {[%clk 0:01:04.7]}
25. Qe3 {[%clk 0:01:52]} 25... Ne6 {[%clk 0:00:58.1]} 26. Re1 {[%clk 0:01:38.9]}
26... Nf4 {[%clk 0:00:48.8]} 27. Nc5 {[%clk 0:01:36.2]} 27... Qc6 {[%clk
0:00:46.6]} 28. Qf3 {[%clk 0:01:27.9]} 28... Qxf3 {[%clk 0:00:39.2]} 29. Rxf3
{[%clk 0:01:28.8]} 29... c6 {[%clk 0:00:39]} 30. Rfe3 {[%clk 0:01:26.2]} 30...
Kf8 {[%clk 0:00:34]} 31. h4 {[%clk 0:01:26.1]} 31... f6 {[%clk 0:00:31.2]} 32.
g3 {[%clk 0:01:22.9]} 32... Nd5 {[%clk 0:00:30.6]} 33. Bxd5 {[%clk 0:01:13.3]}
33... cxd5 {[%clk 0:00:31.5]} 34. d4 {[%clk 0:01:10.3]} 34... Kf7 {[%clk
0:00:22]} 35. f3 {[%clk 0:01:02.1]} 35... h5 {[%clk 0:00:21.3]} 36. Kf2 {[%clk
0:01:02.4]} 36... Bf5 {[%clk 0:00:21.2]} 37. Rd1 {[%clk 0:00:57.3]} 37... e4
{[%clk 0:00:18.7]} 38. Rde1 {[%clk 0:00:53]} 38... g5 {[%clk 0:00:18.8]} 39.
fxe4 {[%clk 0:00:48]} 39... Bxe4 {[%clk 0:00:18.2]} 40. c4 {[%clk 0:00:39.5]}
40... gxh4 {[%clk 0:00:15.4]} 41. gxh4 {[%clk 0:00:40.4]} 41... f5 {[%clk
0:00:14.9]} 42. cxd5 {[%clk 0:00:35.2]} 42... Bxd5 {[%clk 0:00:15.8]} 43. Re5
{[%clk 0:00:34.5]} 43... Rxe5 {[%clk 0:00:14]} 44. dxe5 {[%clk 0:00:35.4]} 44...
f4 {[%clk 0:00:11.4]} 45. Nd3 {[%clk 0:00:34.5]} 45... f3 {[%clk 0:00:09.6]} 46.
Nf4 {[%clk 0:00:34.9]} 46... Bc6 {[%clk 0:00:08.1]} 47. e6+ {[%clk 0:00:27.9]}
47... Ke7 {[%clk 0:00:05.9]} 48. Rg1 {[%clk 0:00:22.4]} 48... Kd6 {[%clk
0:00:03.2]} 49. Rg5 {[%clk 0:00:18.4]} 1-0

[Event "Late-Titled-Tuesday-Blitz-October-17-2023"]
[Site "Chess.com"]
[Date "2023.10.17"]
[Round "2"]
[White "eljanov"]
[Black "amanmuhammethommadov"]
[Result "1-0"]
[WhiteElo "2831"]
[BlackElo "2525"]
[TimeControl "180+1"]
[EndTime "14:18:03 PDT"]
[Termination "eljanov won by resignation"]

1. Nf3 {[%clk 0:03:00.9]} 1... Nf6 {[%clk 0:02:59.3]} 2. g3 {[%clk 0:03:01]}
2... g6 {[%clk 0:02:59.3]} 3. Bg2 {[%clk 0:03:01.5]} 3... Bg7 {[%clk 0:03:00.1]}
4. O-O {[%clk 0:03:01.7]} 4... O-O {[%clk 0:03:01]} 5. d4 {[%clk 0:03:00.8]}
5... d6 {[%clk 0:03:01.4]} 6. c4 {[%clk 0:03:00.7]} 6... c6 {[%clk 0:03:02.1]}
7. Nc3 {[%clk 0:03:00.3]} 7... Bf5 {[%clk 0:03:02.7]} 8. Bf4 {[%clk 0:03:00.4]}
8... Ne4 {[%clk 0:03:02.7]} 9. Na4 {[%clk 0:03:00.6]} 9... d5 {[%clk 0:02:48.6]}
10. Rc1 {[%clk 0:02:36.6]} 10... dxc4 {[%clk 0:02:12]} 11. Ne5 {[%clk
0:02:27.5]} 11... Nd6 {[%clk 0:02:07.9]} 12. Nc5 {[%clk 0:02:05.5]} 12... Bc8
{[%clk 0:01:31.9]} 13. Nxc4 {[%clk 0:02:00.9]} 13... Nxc4 {[%clk 0:01:31.4]} 14.
Rxc4 {[%clk 0:02:00.6]} 14... Nd7 {[%clk 0:01:32]} 15. Nb3 {[%clk 0:01:24.4]}
15... Nb6 {[%clk 0:01:29.6]} 16. Rc1 {[%clk 0:01:21.7]} 16... Nd5 {[%clk
0:01:29]} 17. Bg5 {[%clk 0:01:20.4]} 17... h6 {[%clk 0:01:27.2]} 18. Bd2 {[%clk
0:01:20.5]} 18... Nc7 {[%clk 0:00:51.5]} 19. e3 {[%clk 0:01:10.1]} 19... e5
{[%clk 0:00:46]} 20. Ba5 {[%clk 0:00:56]} 20... Qe7 {[%clk 0:00:41.5]} 21. Qd2
{[%clk 0:00:51.2]} 21... Be6 {[%clk 0:00:28.8]} 22. Bb4 {[%clk 0:00:45.8]} 22...
Qg5 {[%clk 0:00:23.3]} 23. Bxf8 {[%clk 0:00:43.3]} 23... Rxf8 {[%clk 0:00:24.2]}
24. h4 {[%clk 0:00:39.4]} 24... Qe7 {[%clk 0:00:23.6]} 25. dxe5 {[%clk
0:00:37.3]} 25... Bxe5 {[%clk 0:00:22.9]} 26. Nc5 {[%clk 0:00:24.9]} 26... Bc8
{[%clk 0:00:22.3]} 27. b4 {[%clk 0:00:24.1]} 27... Rd8 {[%clk 0:00:18.5]} 28.
Qe2 {[%clk 0:00:24.1]} 28... Nb5 {[%clk 0:00:18.4]} 29. a4 {[%clk 0:00:23.2]}
29... Nc3 {[%clk 0:00:18.6]} 30. Qc4 {[%clk 0:00:22.1]} 30... b5 {[%clk
0:00:17.7]} 31. Qb3 {[%clk 0:00:18]} 31... Ne2+ {[%clk 0:00:17.8]} 32. Kh2
{[%clk 0:00:18.3]} 32... Nxc1 {[%clk 0:00:18.7]} 33. Rxc1 {[%clk 0:00:18.3]}
33... Qf6 {[%clk 0:00:18.4]} 34. Kg1 {[%clk 0:00:17.4]} 34... Rd2 {[%clk
0:00:18.5]} 35. Ne4 {[%clk 0:00:16]} 35... Qf5 {[%clk 0:00:14.9]} 36. Nxd2
{[%clk 0:00:14.6]} 36... Be6 {[%clk 0:00:11.4]} 37. Qc2 {[%clk 0:00:14.6]} 37...
Qf6 {[%clk 0:00:09.5]} 38. Ne4 {[%clk 0:00:14.9]} 38... Qe7 {[%clk 0:00:09.4]}
39. Nc5 {[%clk 0:00:15.1]} 39... bxa4 {[%clk 0:00:08.9]} 40. Nxe6 {[%clk
0:00:14.7]} 40... Qxe6 {[%clk 0:00:09.8]} 41. Qxc6 {[%clk 0:00:14.5]} 41... Qf5
{[%clk 0:00:09.9]} 42. Qc8+ {[%clk 0:00:14]} 42... Kg7 {[%clk 0:00:10.4]} 43.
Qxf5 {[%clk 0:00:12.7]} 43... gxf5 {[%clk 0:00:11.3]} 44. Bd5 {[%clk 0:00:11.9]}
44... a3 {[%clk 0:00:11.8]} 45. Rc5 {[%clk 0:00:11.4]} 45... Bb2 {[%clk
0:00:10.2]} 46. Ba2 {[%clk 0:00:11.5]} 46... f4 {[%clk 0:00:11.1]} 47. exf4
{[%clk 0:00:11.3]} 1-0

[Event "Late-Titled-Tuesday-Blitz-October-17-2023"]
[Site "Chess.com"]
[Date "2023.10.17"]
[Round "2"]
[White "LogoCzar"]
[Black "Sokoloco"]
[Result "0-1"]
[WhiteElo "2380"]
[BlackElo "2709"]
[TimeControl "180+1"]
[EndTime "14:18:07 PDT"]
[Termination "Sokoloco won by resignation"]

1. e4 {[%clk 0:03:00.9]} 1... d6 {[%clk 0:02:59.3]} 2. d4 {[%clk 0:03:00.4]}
2... g6 {[%clk 0:03:00]} 3. Nc3 {[%clk 0:03:00.5]} 3... Bg7 {[%clk 0:03:00.7]}
4. f4 {[%clk 0:03:00.5]} 4... Nf6 {[%clk 0:03:00.2]} 5. Nf3 {[%clk 0:03:00.3]}
5... Bg4 {[%clk 0:02:59]} 6. h3 {[%clk 0:02:59.9]} 6... Bxf3 {[%clk 0:02:58.8]}
7. Qxf3 {[%clk 0:03:00.8]} 7... Nc6 {[%clk 0:02:51.4]} 8. Be3 {[%clk 0:02:59.9]}
8... e5 {[%clk 0:02:51.9]} 9. dxe5 {[%clk 0:02:48.5]} 9... dxe5 {[%clk
0:02:52.8]} 10. f5 {[%clk 0:02:48.6]} 10... Nd4 {[%clk 0:02:45.3]} 11. Qf2
{[%clk 0:02:46.4]} 11... Qd7 {[%clk 0:02:27.3]} 12. g4 {[%clk 0:02:41.8]} 12...
O-O-O {[%clk 0:02:01.9]} 13. g5 {[%clk 0:02:35.3]} 13... Nh5 {[%clk 0:02:01.2]}
14. f6 {[%clk 0:02:24.7]} 14... Bf8 {[%clk 0:02:01.4]} 15. O-O-O {[%clk
0:02:23.5]} 15... Qc6 {[%clk 0:01:44.5]} 16. Bxd4 {[%clk 0:02:03.2]} 16... Rxd4
{[%clk 0:01:35.6]} 17. Rxd4 {[%clk 0:02:02.1]} 17... exd4 {[%clk 0:01:36.5]} 18.
Qxd4 {[%clk 0:02:01.4]} 18... Bc5 {[%clk 0:01:24.1]} 19. Qd1 {[%clk 0:01:46.7]}
19... Ng3 {[%clk 0:00:50.6]} 20. Qg4+ {[%clk 0:01:44.8]} 20... Nf5 {[%clk
0:00:51.1]} 21. Bb5 {[%clk 0:01:34.9]} 21... Qe6 {[%clk 0:00:33.9]} 22. exf5
{[%clk 0:01:31.4]} 22... gxf5 {[%clk 0:00:34.8]} 23. Qc4 {[%clk 0:01:22.4]}
23... Qe3+ {[%clk 0:00:23.6]} 24. Kb1 {[%clk 0:01:21.1]} 24... Rd8 {[%clk
0:00:24.5]} 25. Nd5 {[%clk 0:01:14]} 25... Qf3 {[%clk 0:00:22.5]} 26. Ne7+
{[%clk 0:00:54]} 26... Bxe7 {[%clk 0:00:20.3]} 27. Rc1 {[%clk 0:00:50.8]} 27...
Bd6 {[%clk 0:00:14.9]} 28. Qxf7 {[%clk 0:00:48.4]} 28... Bf4 {[%clk 0:00:15.2]}
29. Qe6+ {[%clk 0:00:42.6]} 29... Kb8 {[%clk 0:00:15.7]} 30. Qe7 {[%clk
0:00:40.7]} 30... Qd1 {[%clk 0:00:11.3]} 31. Qxd8+ {[%clk 0:00:27]} 31... Qxd8
{[%clk 0:00:12.2]} 32. Re1 {[%clk 0:00:25.5]} 32... c6 {[%clk 0:00:11.6]} 33. f7
{[%clk 0:00:24.7]} 33... Kc7 {[%clk 0:00:10.7]} 34. Bc4 {[%clk 0:00:22.1]} 34...
Bxg5 {[%clk 0:00:07.6]} 35. a3 {[%clk 0:00:21]} 35... Be7 {[%clk 0:00:06.4]} 36.
Rg1 {[%clk 0:00:20.2]} 36... Qd6 {[%clk 0:00:05]} 37. Rg8 {[%clk 0:00:19.2]}
37... Bf8 {[%clk 0:00:05.3]} 38. Bb3 {[%clk 0:00:18.6]} 38... f4 {[%clk
0:00:05.7]} 39. Rg1 {[%clk 0:00:17.1]} 39... f3 {[%clk 0:00:05.9]} 40. Rf1
{[%clk 0:00:16.9]} 40... Qf4 {[%clk 0:00:06.4]} 41. c3 {[%clk 0:00:16.1]} 41...
f2 {[%clk 0:00:06.9]} 42. Ka2 {[%clk 0:00:15]} 42... Qe3 {[%clk 0:00:06.9]} 43.
Bc4 {[%clk 0:00:14.3]} 43... Qe4 {[%clk 0:00:07.4]} 44. Kb3 {[%clk 0:00:13.3]}
44... b5 {[%clk 0:00:07.9]} 45. Rxf2 {[%clk 0:00:11.1]} 45... Qxc4+ {[%clk
0:00:08]} 46. Kc2 {[%clk 0:00:10.1]} 46... Qe4+ {[%clk 0:00:08.5]} 47. Kb3
{[%clk 0:00:10]} 47... Qe3 {[%clk 0:00:09.2]} 48. Rg2 {[%clk 0:00:09.5]} 48...
Qxh3 {[%clk 0:00:09.5]} 49. Rg8 {[%clk 0:00:08.8]} 49... Qe6+ {[%clk 0:00:10.2]}
50. Kc2 {[%clk 0:00:08.5]} 50... Qxf7 {[%clk 0:00:11.1]} 51. Rh8 {[%clk
0:00:08.9]} 51... Qg7 {[%clk 0:00:10.9]} 52. Rxf8 {[%clk 0:00:07.9]} 52... Qxf8
{[%clk 0:00:11.3]} 0-1

[Event "Late-Titled-Tuesday-Blitz-October-17-2023"]
[Site "Chess.com"]
[Date "2023.10.17"]
[Round "2"]
[White "Elsa167"]
[Black "Giorno"]
[Result "1/2-1/2"]
[WhiteElo "2808"]
[BlackElo "2528"]
[TimeControl "180+1"]
[EndTime "14:18:09 PDT"]
[Termination "Game drawn by repetition"]

1. d4 {[%clk 0:03:00.9]} 1... d5 {[%clk 0:02:58.4]} 2. c4 {[%clk 0:03:01.3]}
2... e6 {[%clk 0:02:58]} 3. Nf3 {[%clk 0:03:01.4]} 3... Nf6 {[%clk 0:02:58.1]}
4. Nc3 {[%clk 0:03:02]} 4... Be7 {[%clk 0:02:57.4]} 5. g3 {[%clk 0:03:01.8]}
5... O-O {[%clk 0:02:55.9]} 6. Bg2 {[%clk 0:03:02.4]} 6... Ne4 {[%clk
0:02:52.1]} 7. O-O {[%clk 0:02:57]} 7... Nxc3 {[%clk 0:02:48.3]} 8. bxc3 {[%clk
0:02:57.1]} 8... dxc4 {[%clk 0:02:48.8]} 9. Ne5 {[%clk 0:02:41.3]} 9... c5
{[%clk 0:02:48.7]} 10. Nxc4 {[%clk 0:02:40.8]} 10... cxd4 {[%clk 0:02:46.3]} 11.
cxd4 {[%clk 0:02:41.7]} 11... Nc6 {[%clk 0:02:40.2]} 12. Bb2 {[%clk 0:02:39.2]}
12... Bd7 {[%clk 0:02:35.6]} 13. e4 {[%clk 0:02:36.7]} 13... Na5 {[%clk
0:02:33.6]} 14. Nxa5 {[%clk 0:02:10.6]} 14... Qxa5 {[%clk 0:02:34.5]} 15. d5
{[%clk 0:02:11.5]} 15... exd5 {[%clk 0:02:18.1]} 16. exd5 {[%clk 0:02:12.4]}
16... Bd6 {[%clk 0:02:04.3]} 17. Qd4 {[%clk 0:01:47]} 17... f6 {[%clk
0:02:03.3]} 18. Rfe1 {[%clk 0:01:44.9]} 18... Rfe8 {[%clk 0:01:58.8]} 19. Bc3
{[%clk 0:01:38.4]} 19... Rxe1+ {[%clk 0:01:49.1]} 20. Bxe1 {[%clk 0:01:32]}
20... Qb6 {[%clk 0:01:48.6]} 21. Qd1 {[%clk 0:01:11.3]} 21... Bf5 {[%clk
0:01:43.2]} 22. Qf3 {[%clk 0:00:50.8]} 22... Bd7 {[%clk 0:01:35.5]} 23. Qd3
{[%clk 0:00:45.2]} 23... Re8 {[%clk 0:01:22.1]} 24. Rb1 {[%clk 0:00:45.3]} 24...
Qc7 {[%clk 0:01:12.3]} 25. Be4 {[%clk 0:00:38.4]} 25... h6 {[%clk 0:01:06.7]}
26. Bd2 {[%clk 0:00:35]} 26... b6 {[%clk 0:01:01.6]} 27. Rc1 {[%clk 0:00:35.1]}
27... Qd8 {[%clk 0:00:56.1]} 28. Be3 {[%clk 0:00:30]} 28... Qe7 {[%clk
0:00:52.3]} 29. Bg6 {[%clk 0:00:29.8]} 29... Rc8 {[%clk 0:00:50.4]} 30. Rxc8+
{[%clk 0:00:27.3]} 30... Bxc8 {[%clk 0:00:51.3]} 31. Qc4 {[%clk 0:00:27.7]}
31... Qc7 {[%clk 0:00:45.9]} 32. Qb5 {[%clk 0:00:21.9]} 32... Bd7 {[%clk
0:00:43.4]} 33. Qe2 {[%clk 0:00:21.8]} 33... Qc3 {[%clk 0:00:37]} 34. Bc2 {[%clk
0:00:21.1]} 34... Qa1+ {[%clk 0:00:32.8]} 35. Kg2 {[%clk 0:00:17.8]} 35... Qe5
{[%clk 0:00:30.2]} 36. Qd3 {[%clk 0:00:17.2]} 36... f5 {[%clk 0:00:24.9]} 37.
Bb3 {[%clk 0:00:14.2]} 37... Kf7 {[%clk 0:00:20.1]} 38. Bf4 {[%clk 0:00:13.4]}
38... Qf6 {[%clk 0:00:18.7]} 39. Qe3 {[%clk 0:00:13.7]} 39... g5 {[%clk
0:00:17.6]} 40. Bxd6 {[%clk 0:00:13.2]} 40... Qxd6 {[%clk 0:00:18.5]} 41. Qd4
{[%clk 0:00:11.8]} 41... Kg6 {[%clk 0:00:17.8]} 42. Qh8 {[%clk 0:00:11.9]} 42...
Qf6 {[%clk 0:00:17.4]} 43. Qg8+ {[%clk 0:00:10.6]} 43... Qg7 {[%clk 0:00:17.1]}
44. Qd8 {[%clk 0:00:10.8]} 44... f4 {[%clk 0:00:15.8]} 45. gxf4 {[%clk
0:00:09.8]} 45... gxf4 {[%clk 0:00:15.8]} 46. Bc2+ {[%clk 0:00:09.2]} 46... Kh5+
{[%clk 0:00:16.1]} 47. Kf1 {[%clk 0:00:09.2]} 47... Bh3+ {[%clk 0:00:16.1]} 48.
Ke1 {[%clk 0:00:09.4]} 48... Qe5+ {[%clk 0:00:16.2]} 49. Kd2 {[%clk 0:00:09.2]}
49... Qd4+ {[%clk 0:00:16.6]} 50. Kc1 {[%clk 0:00:09.8]} 50... Qa1+ {[%clk
0:00:16.4]} 51. Kd2 {[%clk 0:00:10.2]} 51... Qd4+ {[%clk 0:00:16.6]} 52. Kc1
{[%clk 0:00:07.7]} 52... Qa1+ {[%clk 0:00:14.5]} 53. Kd2 {[%clk 0:00:08.2]}
53... Qd4+ {[%clk 0:00:14.5]} 1/2-1/2